bitfinex/quotes_ETHUSD_20241024
["timestamp","ask_amount","ask_price","bid_price","bid_amount"]
[1729796103931,4.0377367,2527.1,2526.9,1.02722937]
[1729796104130,4.0377367,2527.1,2526.8,0.82681012]
[1729796104341,0.0805167,2527.1,2526.9,1.02723671]
[1729796104656,0.0805167,2527.1,2526.8,0.82681012]
[1729796104866,0.0805167,2527.1,2526.9,1.02718885]
[1729796105074,4.0376467,2527.1,2526.8,0.82681012]
[1729796105369,4.0376467,2527.1,2526.9,1.02716008]
[1729796105530,0.0805167,2527.1,2526.8,0.82681012]
[1729796105848,0.0805167,2527.1,2526.9,1.02717934]
[1729796106022,4.0376767,2527.1,2526.8,0.82681012]
[1729796106226,4.0376767,2527.1,2526.9,1.0272097]
[1729796106451,0.0805167,2527.1,2526.8,0.82681012]
[1729796106637,0.0805167,2527.1,2526.9,1.02719352]
[1729796106845,4.0376367,2527.1,2526.8,0.82681012]
[1729796107056,4.0376367,2527.1,2526.9,1.02720998]
[1729796107376,0.0805167,2527.1,2526.8,0.82681012]
[1729796107670,0.0805167,2527.1,2526.9,1.02723345]
[1729796107967,0.0805167,2527.1,2526.8,4.78437012]
[1729796108126,0.0805167,2527.1,2526.9,1.02714859]
[1729796108331,0.0805167,2527.1,2526.8,4.78437012]
[1729796108628,0.0805167,2527.1,2526.9,1.02713356]
[1729796108970,0.0805167,2527.1,2527.0,1.62394465]
[1729796109126,0.0805167,2527.1,2527.0,3.29967848]
[1729796109326,4.7876,2527.5,2527.1,3.9571]
[1729796110571,0.0915044,2527.6,2527.4,5.58056465]
[1729796110863,0.0915044,2527.6,2527.4,3.95662]
[1729796111163,0.0915044,2527.6,2527.4,7.91317]
[1729796111329,0.0915044,2527.6,2527.5,3.95647]
[1729796111873,0.0915044,2527.6,2527.4,3.95661]
[1729796112853,0.07802257,2527.5,2527.4,3.95661]
[1729796113878,0.07802257,2527.5,2527.3,6.35843465]
[1729796114168,0.07802257,2527.5,2527.4,3.95663]
[1729796115261,0.07802257,2527.5,2527.4,5.58057465]
[1729796115574,0.07802257,2527.5,2527.4,7.46072935]
[1729796115874,0.07802257,2527.5,2527.4,6.35557465]
[1729796116252,0.0915044,2527.6,2527.5,3.95647]
[1729796116484,0.0915044,2527.6,2527.5,6.68347156]
[1729796117577,0.0915044,2527.6,2527.5,6.76259316]
[1729796118863,0.0915044,2527.6,2527.5,6.68347156]
[1729796119240,0.0915044,2527.6,2527.5,1.10305691]
[1729796119655,0.0915044,2527.6,2527.2,4.78361012]
[1729796119933,4.7990244,2527.6,2527.1,7.22592477]
[1729796120081,4.7990244,2527.6,2527.2,1.02530369]
[1729796120286,3.95673,2527.4,2527.1,3.0]
[1729796120484,7.91348,2527.4,2527.1,3.0]
[1729796120716,0.0782738,2527.3,2527.0,4.62394465]
[1729796120919,0.0782738,2527.3,2527.1,1.62394465]
[1729796121092,0.0782738,2527.3,2527.1,4.62394465]
[1729796121415,0.0782738,2527.3,2527.1,5.58104465]
[1729796121619,3.95648,2527.5,2527.1,6.99937513]
[1729796121823,0.07818685,2527.2,2527.1,9.99937513]
[1729796122120,3.95648,2527.5,2527.1,6.99937513]
[1729796122297,0.07818685,2527.2,2527.1,8.58104465]
[1729796122492,3.95648,2527.5,2527.1,8.58104465]
[1729796122697,0.07818685,2527.2,2527.1,8.58104465]
[1729796123020,0.07818685,2527.2,2527.0,8.58110465]
[1729796123224,3.95664,2527.4,2527.0,8.58110465]
[1729796123517,0.07809989,2527.1,2526.8,0.82681012]
[1729796123740,4.70817,2527.2,2526.8,3.95755]
[1729796123896,4.70817,2527.2,2526.8,5.58149465]
[1729796124093,0.07809989,2527.1,2526.8,3.95755]
[1729796124336,3.95726,2527.0,2526.6,7.22673477]
[1729796124492,4.03521989,2527.1,2526.6,6.39992465]
[1729796124693,0.07790362,2526.9,2526.7,5.65003732]
[1729796124897,0.0779906,2527.0,2526.7,8.58166465]
[1729796125131,0.07781665,2526.8,2526.7,8.58166465]
[1729796125317,3.95712,2527.1,2526.7,8.58166465]
[1729796125503,0.07781665,2526.8,2526.7,8.58166465]
[1729796125704,3.95712,2527.1,2526.7,9.60779752]
[1729796125909,0.07781665,2526.8,2526.7,9.60779752]
[1729796126119,3.95712,2527.1,2526.7,9.60779752]
[1729796126302,0.07764186,2526.8,2526.7,9.60779752]
[1729796126941,3.95712,2527.1,2526.7,9.60779752]
[1729796127136,0.07761211,2526.8,2526.7,7.98385287]
[1729796127362,4.70816,2527.2,2526.7,9.60779752]
[1729796127542,0.07761211,2526.8,2526.7,9.60779752]
[1729796127743,4.70816,2527.2,2526.7,9.60779752]
[1729796128245,0.07787302,2527.1,2526.7,9.60779752]
[1729796128545,0.07787302,2527.1,2526.8,3.95756]
[1729796130926,3.95728,2527.0,2526.6,5.6032556]
[1729796131134,3.95728,2527.0,2526.6,0.8272856]
[1729796131135,1.62394465,2526.9,2526.6,0.8272856]
[1729796131337,4.03517908,2526.9,2526.6,0.8272856]
[1729796132147,0.07769908,2526.9,2526.6,6.40899025]
[1729796132333,0.07769908,2526.9,2526.6,5.58170465]
[1729796134455,0.07769908,2526.9,2526.7,1.62394465]
[1729796134747,0.07769908,2526.9,2526.7,2.38684465]
[1729796134948,0.07769908,2526.9,2526.7,0.7629]
[1729796135531,0.07769908,2526.9,2526.8,1.62394465]
[1729796135853,4.71935,2527.3,2526.8,5.58142465]
[1729796136029,1.03000546,2527.2,2526.9,3.95734]
[1729796136427,4.71935,2527.3,2526.9,5.58128465]
[1729796136842,4.71935,2527.3,2526.9,3.95734]
[1729796137222,4.71935,2527.3,2526.9,5.58128465]
[1729796137551,0.7625,2527.3,2526.9,5.58128465]
[1729796137752,4.71935,2527.3,2526.9,3.95734]
[1729796138553,0.07778146,2527.2,2526.9,3.95734]
[1729796138954,4.71935,2527.3,2526.9,3.95734]
[1729796139125,0.0776945,2527.1,2526.9,3.95734]
[1729796139327,3.95698,2527.2,2526.8,5.58147465]
[1729796139827,0.0776945,2527.1,2526.8,5.58147465]
[1729796140861,3.95734,2527.0,2526.7,0.7629]
[1729796141040,4.03494754,2527.0,2526.7,1.02589408]
[1729796141558,3.95753,2526.9,2526.5,8.46395511]
[1729796141789,3.95764,2526.8,2526.6,1.02603514]
[1729796141930,3.95773,2526.7,2526.6,1.02603514]
[1729796142257,3.95773,2526.7,2526.4,2.65016302]
[1729796142258,4.0350766,2526.7,2526.4,2.65016302]
[1729796142461,0.0773466,2526.7,2526.5,1.62394465]
[1729796142629,3.9576,2526.8,2526.5,1.62394465]
[1729796142820,0.07725961,2526.6,2526.5,1.62394465]
[1729796143027,3.9576,2526.8,2526.4,5.58212465]
[1729796143227,0.07725961,2526.6,2526.4,5.58212465]
[1729796143533,3.9576,2526.8,2526.4,5.58212465]
[1729796143728,0.07717261,2526.5,2526.4,5.58212465]
[1729796143936,3.9576,2526.8,2526.4,5.58212465]
[1729796144137,0.07717261,2526.5,2526.4,3.95818]
[1729796144337,4.76357,2526.9,2526.5,3.95804]
[1729796144539,3.95747,2526.9,2526.6,1.62394465]
[1729796145770,0.07745558,2526.8,2526.6,1.62394465]
[1729796150973,0.07745558,2526.8,2526.7,1.62394465]
[1729796151350,0.7626,2527.1,2526.7,2.41754465]
[1729796151747,0.07756627,2527.0,2526.7,2.41754465]
[1729796152585,0.07756627,2527.0,2526.7,6.37527465]
[1729796152951,0.07756627,2527.0,2526.7,7.40858911]
[1729796155264,3.95797,2526.6,2526.4,0.82715618]
[1729796155519,3.95841,2526.3,2526.0,0.82715618]
[1729796155673,0.8266,2526.0,2525.5,0.82715618]
[1729796155857,0.8266,2526.0,2525.3,5.81240505]
[1729796155858,3.95915,2525.8,2525.3,5.81240505]
[1729796156059,3.95951,2525.6,2525.1,1.64105618]
[1729796156261,4.74653,2525.5,2525.0,1.02599798]
[1729796156601,4.74653,2525.5,2524.8,2.03233428]
[1729796156602,0.7869,2525.5,2524.8,1.81759798]
[1729796156806,3.95986,2525.4,2524.8,0.7916]
[1729796156952,4.74659,2525.5,2524.9,3.9605]
[1729796157296,3.95978,2525.4,2524.8,5.32990287]
[1729796157478,3.95978,2525.4,2524.8,0.7916]
[1729796157479,3.96008,2525.2,2524.8,0.7916]
[1729796157684,3.96024,2525.1,2524.8,0.7916]
[1729796157864,0.7869,2525.5,2524.2,7.27]
[1729796157865,3.96075,2524.8,2524.5,0.7916]
[1729796158067,3.96075,2524.8,2524.2,4.75315]
[1729796158257,3.96086,2524.7,2524.2,4.75315]
[1729796158457,3.96102,2524.6,2524.2,1.663101]
[1729796158900,3.96102,2524.6,2524.2,5.624741]
[1729796159058,0.07463097,2524.5,2524.2,5.624741]
[1729796159516,3.96086,2524.7,2524.2,5.624741]
[1729796159688,0.0744284,2524.4,2524.2,5.624741]
[1729796159998,3.96086,2524.7,2524.3,0.57039666]
[1729796160699,4.09207451,2525.0,2523.9,0.7916]
[1729796160892,3.96145,2524.4,2523.9,0.7916]
[1729796161198,3.96173,2524.2,2523.6,12.02175451]
[1729796161367,3.96173,2524.2,2523.6,8.05925451]
[1729796161568,3.96173,2524.2,2523.6,0.7916]
[1729796161789,3.96164,2524.3,2523.6,5.95632045]
[1729796161962,3.96164,2524.3,2523.7,3.96241]
[1729796162163,3.96174,2524.2,2523.6,9.26150496]
[1729796162783,0.07324628,2524.1,2523.7,3.96242]
[1729796163162,3.96165,2524.2,2523.7,3.96242]
[1729796163492,0.07317919,2524.1,2523.7,5.2848255]
[1729796163858,0.07317919,2524.1,2524.0,7.26713451]
[1729796164064,3.96107,2524.6,2524.0,4.05967451]
[1729796164281,0.07364372,2524.1,2524.0,8.10086445]
[1729796164490,3.96155,2524.3,2524.0,1.96078345]
[1729796164793,3.96188,2524.1,2523.7,0.7768]
[1729796165162,4.03215453,2524.0,2523.7,0.7768]
[1729796165463,4.03215453,2524.0,2523.7,3.30517451]
[1729796165464,0.07018453,2524.0,2523.7,3.30517451]
[1729796165676,3.96173,2524.2,2523.7,3.30517451]
[1729796165992,3.9618,2524.1,2523.6,0.7768]
[1729796166293,4.03305103,2524.1,2523.7,0.80446045]
[1729796166461,4.03307103,2524.1,2523.7,0.80446045]
[1729796167173,0.07125103,2524.1,2523.7,8.07203496]
[1729796167358,3.96145,2524.4,2523.8,4.04142093]
[1729796167359,3.96141,2524.4,2523.8,4.04142093]
[1729796167568,3.96141,2524.4,2523.8,4.04150591]
[1729796167757,0.07180544,2524.3,2523.9,4.5165286]
[1729796168169,0.07180544,2524.3,2523.9,8.4786486]
[1729796169384,0.07180544,2524.3,2524.0,3.96191]
[1729796169592,3.96132,2524.5,2524.0,4.04114226]
[1729796169922,0.07070279,2524.4,2524.1,7.26686451]
[1729796170075,0.07070279,2524.4,2524.3,3.96149]
[1729796170274,3.96074,2524.8,2524.3,3.96149]
[1729796170484,0.07200261,2524.4,2524.3,3.96149]
[1729796170682,3.96074,2524.8,2524.3,3.96149]
[1729796170904,0.06964882,2524.4,2524.2,5.46170645]
[1729796171086,3.96074,2524.8,2524.3,3.96149]
[1729796171257,3.96086,2524.7,2524.3,3.96149]
[1729796172887,3.96073,2524.8,2524.3,7.92289]
[1729796173087,3.96049,2525.0,2524.3,4.90369765]
[1729796173288,7.92099,2525.0,2524.5,3.96117]
[1729796173490,0.06759966,2524.9,2524.5,3.96117]
[1729796175301,4.02819966,2524.9,2524.4,3.96131]
[1729796175486,4.02819966,2524.9,2524.4,5.00436722]
[1729796175899,4.02819966,2524.9,2524.4,4.92515076]
[1729796177400,4.02819966,2524.9,2524.4,5.00436722]
[1729796177789,0.06759966,2524.9,2524.4,1.04305722]
[1729796177993,0.808,2525.2,2524.6,3.96091]
[1729796177994,3.96026,2525.1,2524.6,3.96091]
[1729796178197,0.06124919,2525.0,2524.6,3.96091]
[1729796179138,4.02165919,2525.0,2524.5,4.51118]
[1729796179601,4.02165919,2525.0,2524.5,4.51111]
[1729796179810,4.02165919,2525.0,2524.5,4.962201]
[1729796180009,0.06124919,2525.0,2524.6,3.96099]
[1729796180323,3.96025,2525.1,2524.7,4.04004831]
[1729796180527,0.06120201,2524.9,2524.7,4.86574831]
[1729796180691,3.96025,2525.1,2524.7,4.86574831]
[1729796181239,0.06134873,2525.0,2524.8,0.55]
[1729796181518,5.19,2525.9,2525.0,3.96037]
[1729796181519,7.91912,2525.6,2525.0,3.96037]
[1729796181724,3.95964,2525.5,2525.0,3.96037]
[1729796181880,4.02099448,2525.5,2525.0,3.96037]
[1729796182089,4.02099448,2525.5,2525.0,5.43796545]
[1729796182515,3.95981,2525.4,2525.0,5.43796545]
[1729796182734,0.06119402,2525.4,2525.0,5.43796545]
[1729796184431,0.06119402,2525.4,2525.1,3.96023]
[1729796184889,0.06119402,2525.4,2525.1,3.96015]
[1729796185223,3.95906,2525.9,2525.4,3.95975]
[1729796185399,3.95906,2525.9,2525.5,3.95953]
[1729796185400,3.959,2525.9,2525.5,3.95953]
[1729796186525,4.73325,2526.0,2525.5,3.95953]
[1729796186914,3.95923,2525.8,2525.3,0.7858]
[1729796187098,3.95923,2525.8,2525.4,3.95969]
[1729796187822,3.95899,2525.9,2525.4,3.95969]
[1729796188028,3.95899,2525.9,2525.5,3.95959]
[1729796188191,3.9597,2525.5,2525.0,1.47759545]
[1729796188522,0.06147194,2525.4,2525.0,3.96028]
[1729796188896,4.02126194,2525.4,2525.0,3.96028]
[1729796189602,0.06147194,2525.4,2525.0,3.96028]
[1729796190810,4.02124194,2525.4,2525.0,3.96028]
[1729796191011,0.06147194,2525.4,2525.0,3.96028]
[1729796191433,4.02124194,2525.4,2525.0,3.96028]
[1729796192808,0.06147194,2525.4,2525.0,7.92059]
[1729796193010,0.06147194,2525.4,2525.1,3.96021]
[1729796196247,0.05951767,2525.3,2525.1,3.96021]
[1729796196440,3.95962,2525.5,2525.1,3.96021]
[1729796196645,0.05943061,2525.2,2525.0,3.96037]
[1729796196945,3.95962,2525.5,2525.0,3.96037]
[1729796197243,3.95962,2525.5,2525.0,1.25504862]
[1729796197451,0.05960473,2525.4,2525.1,3.96022]
[1729796197743,0.05960473,2525.4,2525.2,3.96001]
[1729796197949,0.05960473,2525.4,2525.3,4.83411604]
[1729796198251,4.77305,2526.0,2525.6,3.95943]
[1729796198252,0.8142,2526.0,2525.6,3.95943]
[1729796199224,4.77309,2526.0,2525.6,3.95943]
[1729796200126,0.05368534,2525.9,2525.6,3.95943]
[1729796200652,0.05368534,2525.9,2525.7,4.72412]
[1729796200856,3.30517451,2526.7,2525.7,4.72412]
[1729796200857,0.8312,2526.4,2525.8,0.07917964]
[1729796201038,4.78955,2526.4,2525.9,3.95891]
[1729796201427,3.95835,2526.4,2526.0,3.9588]
[1729796201624,3.95828,2526.4,2526.1,0.7581]
[1729796201824,3.95843,2526.3,2525.9,0.8103]
[1729796202126,7.91661,2526.4,2525.9,5.79259787]
[1729796202332,4.77015,2526.7,2525.9,4.76921]
[1729796202536,3.95831,2526.4,2525.9,4.76921]
[1729796202841,3.9582,2526.4,2526.0,3.95882]
[1729796203035,3.9584,2526.3,2525.9,0.8103]
[1729796203239,3.9584,2526.3,2525.9,4.76922]
[1729796203628,0.05417741,2526.2,2525.9,4.76922]
[1729796203831,3.95835,2526.4,2525.9,5.43135734]
[1729796204165,0.05416714,2526.3,2525.9,5.43135734]
[1729796204827,0.05416714,2526.3,2526.0,3.9588]
[1729796205654,0.05416714,2526.3,2525.9,5.43140734]
[1729796207584,0.05416714,2526.3,2526.0,3.95881]
[1729796207759,0.05416714,2526.3,2526.0,4.90575981]
[1729796210185,0.05416714,2526.3,2526.0,0.94694981]
[1729796210346,4.01261714,2526.3,2525.9,0.8103]
[1729796210839,4.01261714,2526.3,2525.9,4.76926]
[1729796211045,4.83731714,2526.3,2525.9,4.76926]
[1729796212580,0.87886714,2526.3,2525.9,4.76926]
[1729796214405,4.83722714,2526.3,2525.9,4.76926]
[1729796214912,0.87886714,2526.3,2525.9,4.76926]
[1729796215575,4.83723714,2526.3,2525.9,8.72814]
[1729796215799,4.83723714,2526.3,2525.9,4.76918]
[1729796216105,4.83723714,2526.3,2525.9,8.72808]
[1729796217010,4.83723714,2526.3,2525.9,4.76918]
[1729796217711,4.83723714,2526.3,2525.9,8.7281]
[1729796220099,0.87886714,2526.3,2525.9,8.7281]
[1729796220304,4.83722714,2526.3,2525.9,4.76918]
[1729796220813,0.87886714,2526.3,2526.0,3.95881]
[1729796222110,4.83722714,2526.3,2525.9,4.76926]
[1729796223286,4.83722714,2526.3,2525.9,8.72817]
[1729796224090,0.87886714,2526.3,2526.0,3.95875]
[1729796224605,4.83724714,2526.3,2525.9,4.76925]
[1729796224812,4.83724714,2526.3,2525.9,8.7282]
[1729796224983,4.83724714,2526.3,2525.9,4.76925]
[1729796225410,4.83724714,2526.3,2525.9,8.72814]
[1729796225615,0.87886714,2526.3,2525.9,8.72814]
[1729796226077,0.87886714,2526.3,2525.9,4.76919]
[1729796226409,4.83722714,2526.3,2525.9,5.72474162]
[1729796226783,4.83722714,2526.3,2525.9,9.68366162]
[1729796226989,0.87886714,2526.3,2525.9,9.68366162]
[1729796228213,0.87886714,2526.3,2526.0,3.95876]
[1729796228511,0.05416714,2526.3,2526.2,1.62533717]
[1729796229304,4.01254714,2526.3,2526.1,1.62533717]
[1729796229813,0.05416714,2526.3,2526.2,1.62533717]
[1729796230114,0.05416714,2526.3,2526.1,1.62533717]
[1729796230321,0.05416714,2526.3,2526.2,1.62533717]
[1729796231379,0.05416714,2526.3,2526.1,1.62533717]
[1729796231819,0.05416714,2526.3,2526.2,1.62533717]
[1729796232891,4.73816,2526.7,2526.3,3.95834]
[1729796233092,4.73816,2526.7,2526.5,1.62533717]
[1729796233290,4.73816,2526.7,2526.4,1.62533717]
[1729796233599,4.73816,2526.7,2526.5,1.62533717]
[1729796235187,4.73816,2526.7,2526.4,1.62533717]
[1729796235711,0.05508849,2526.6,2526.5,1.62533717]
[1729796236311,0.05508849,2526.6,2526.4,1.62533717]
[1729796238498,4.01296849,2526.6,2526.4,1.62533717]
[1729796240726,4.01296849,2526.6,2526.2,1.02718941]
[1729796240727,3.95815,2526.5,2526.2,1.62533717]
[1729796240889,4.01325122,2526.5,2526.2,2.65259144]
[1729796241491,4.01325122,2526.5,2526.2,1.62533717]
[1729796241840,4.01325122,2526.5,2526.2,2.65254411]
[1729796241991,4.01325122,2526.5,2526.2,1.62533717]
[1729796242696,4.01325122,2526.5,2526.2,2.65246797]
[1729796243298,4.01325122,2526.5,2526.3,1.0271308]
[1729796243518,4.01325122,2526.5,2526.2,1.62533717]
[1729796243725,4.01325122,2526.5,2526.3,1.02767278]
[1729796243917,4.01325122,2526.5,2526.2,1.62533717]
[1729796244108,4.01325122,2526.5,2526.3,1.02766384]
[1729796244306,4.01325122,2526.5,2526.2,2.45249335]
[1729796244555,4.01325122,2526.5,2526.3,1.02803451]
[1729796244708,4.01325122,2526.5,2526.2,2.45249335]
[1729796244893,4.01325122,2526.5,2526.3,1.02801367]
[1729796245097,4.01325122,2526.5,2526.2,2.45249335]
[1729796245405,4.01325122,2526.5,2526.3,1.02819312]
[1729796245723,4.01325122,2526.5,2526.2,2.45249335]
[1729796245903,4.01325122,2526.5,2526.3,1.02861815]
[1729796246227,4.01325122,2526.5,2526.4,1.02879352]
[1729796248435,4.01325122,2526.5,2526.3,0.82715618]
[1729796248598,4.01325122,2526.5,2526.4,1.02924445]
[1729796248999,4.88838934,2526.5,2526.4,1.02924445]
[1729796249200,4.78024,2526.4,2526.2,0.82715618]
[1729796249415,4.78024,2526.4,2526.3,1.02943155]
[1729796250747,3.95848,2526.3,2526.1,0.82715618]
[1729796250917,3.95848,2526.3,2526.2,1.02953056]
[1729796252832,4.01130998,2526.3,2526.2,1.02953056]
[1729796253159,4.01130998,2526.3,2526.1,2.45249335]
[1729796253326,4.01130998,2526.3,2526.2,1.02954005]
[1729796254139,4.01117998,2526.3,2526.2,1.02954005]
[1729796254661,0.05282998,2526.3,2526.2,1.02954005]
[1729796255641,4.01117998,2526.3,2526.2,1.02954005]
[1729796255846,3.95835,2526.3,2526.2,1.02954005]
[1729796256043,4.01089397,2526.3,2526.2,1.02954457]
[1729796258059,4.01089397,2526.3,2526.2,1.02950907]
[1729796262032,0.05254397,2526.3,2526.2,1.02950907]
[1729796263171,4.01089397,2526.3,2526.2,1.02950907]
[1729796267667,4.01089397,2526.3,2526.2,1.02997777]
[1729796268266,0.05254397,2526.3,2526.2,1.02997777]
[1729796271073,4.01089397,2526.3,2526.2,1.02997777]
[1729796273651,4.88999537,2526.3,2526.2,1.02997777]
[1729796273861,4.88999537,2526.3,2525.8,1.65431237]
[1729796273862,3.95914,2525.8,2525.7,0.82715618]
[1729796274189,4.01133648,2525.8,2525.7,1.85753524]
[1729796274482,4.01133648,2525.8,2525.7,1.03037906]
[1729796274685,0.05219648,2525.8,2525.7,1.03037906]
[1729796275356,0.05219648,2525.8,2525.5,2.45249335]
[1729796275555,0.05219648,2525.8,2525.6,1.02983618]
[1729796275894,0.05219648,2525.8,2525.7,1.02983596]
[1729796276048,0.05219648,2525.8,2525.6,1.62533717]
[1729796277786,0.05219648,2525.8,2525.5,2.45249335]
[1729796277987,0.05219648,2525.8,2525.6,1.02933858]
[1729796278187,0.05219648,2525.8,2525.5,2.45249335]
[1729796278376,0.05219648,2525.8,2525.6,1.02919832]
[1729796278570,0.05219648,2525.8,2525.5,2.45249335]
[1729796278777,0.05219648,2525.8,2525.6,1.0291959]
[1729796278979,0.05219648,2525.8,2525.5,2.45249335]
[1729796279251,0.05219648,2525.8,2525.6,1.02918617]
[1729796280353,4.01133648,2525.8,2525.6,1.02918617]
[1729796280554,4.01133648,2525.8,2525.4,3.24579335]
[1729796280754,0.05219648,2525.8,2525.5,2.65443537]
[1729796280992,0.05219648,2525.8,2525.5,1.62533717]
[1729796281191,0.05219648,2525.8,2525.4,7.20555335]
[1729796281353,0.05219648,2525.8,2525.5,1.02897083]
[1729796281562,0.05219648,2525.8,2525.5,1.62533717]
[1729796281885,4.01133648,2525.8,2525.5,1.62533717]
[1729796282251,4.01133648,2525.8,2525.5,2.65418878]
[1729796282454,0.05219648,2525.8,2525.5,2.65418878]
[1729796282654,4.01135648,2525.8,2525.5,2.65418878]
[1729796283652,4.01135648,2525.8,2525.5,1.02885161]
[1729796283868,4.74011,2525.5,2525.2,0.82715618]
[1729796284078,4.74011,2525.5,2525.2,1.62533717]
[1729796284357,0.0518188,2525.4,2525.2,1.62533717]
[1729796284856,0.0518188,2525.4,2525.2,2.65442509]
[1729796285187,4.74011,2525.5,2525.2,2.65442509]
[1729796285386,4.74011,2525.5,2525.2,1.62533717]
[1729796286477,0.7805,2525.5,2525.2,1.62533717]
[1729796286894,0.0516248,2525.4,2525.2,1.62533717]
[1729796287584,0.0516248,2525.4,2525.3,1.62533717]
[1729796290818,0.0516248,2525.4,2525.2,1.62533717]
[1729796291123,0.0516248,2525.4,2525.3,1.62533717]
[1729796291305,0.0516248,2525.4,2525.3,6.37255717]
[1729796291504,4.76545,2526.0,2525.6,0.7873]
[1729796291707,3.95905,2525.9,2525.7,1.62533717]
[1729796291899,3.95905,2525.9,2525.6,2.41263717]
[1729796292500,4.76549,2526.0,2525.7,1.62533717]
[1729796292725,4.76549,2526.0,2525.6,0.7873]
[1729796292726,3.959,2525.9,2525.6,2.41263717]
[1729796293621,3.95904,2525.9,2525.7,1.62533717]
[1729796293789,3.95904,2525.9,2525.6,2.41263717]
[1729796295248,0.04936968,2525.8,2525.6,2.41263717]
[1729796297436,0.04936968,2525.8,2525.7,1.62533717]
[1729796297806,3.95889,2526.0,2525.7,1.62533717]
[1729796298099,0.04960771,2525.9,2525.8,1.62533717]
[1729796298303,4.00858771,2525.9,2525.8,1.62533717]
[1729796298522,4.00858771,2525.9,2525.7,1.62533717]
[1729796298926,0.04960771,2525.9,2525.7,1.62533717]
[1729796299706,4.00870771,2525.9,2525.7,1.62533717]
[1729796300034,3.95914,2525.8,2525.6,2.41263717]
[1729796300245,0.0494336,2525.7,2525.6,2.41263717]
[1729796300718,3.9591,2525.9,2525.6,2.41263717]
[1729796300918,0.0494336,2525.7,2525.6,2.41263717]
[1729796301117,3.9591,2525.9,2525.6,2.41263717]
[1729796301326,0.0494336,2525.7,2525.6,0.7873]
[1729796301639,0.0494336,2525.7,2525.6,2.41263717]
[1729796301847,3.9591,2525.9,2525.6,2.41263717]
[1729796302138,0.0494336,2525.7,2525.6,0.7873]
[1729796302304,3.9591,2525.9,2525.6,0.7873]
[1729796302505,0.0494336,2525.7,2525.6,0.7873]
[1729796302716,3.9591,2525.9,2525.6,0.7873]
[1729796302924,0.0494336,2525.7,2525.6,2.41263717]
[1729796303141,3.9591,2525.9,2525.6,2.41263717]
[1729796303325,0.0494336,2525.7,2525.6,2.41263717]
[1729796303512,3.9591,2525.9,2525.6,2.41263717]
[1729796303707,0.0494336,2525.7,2525.6,0.7873]
[1729796303904,3.9591,2525.9,2525.6,2.41263717]
[1729796304109,0.0494336,2525.7,2525.6,2.41263717]
[1729796304344,3.9591,2525.9,2525.6,2.41263717]
[1729796304514,0.04954204,2525.7,2525.6,2.41263717]
[1729796304715,3.95919,2525.8,2525.6,2.41263717]
[1729796304919,0.04954204,2525.7,2525.6,2.41263717]
[1729796305317,3.95919,2525.8,2525.6,2.41263717]
[1729796305542,0.04957446,2525.7,2525.6,2.41263717]
[1729796305840,3.95919,2525.8,2525.6,2.41263717]
[1729796306041,0.04957446,2525.7,2525.6,2.41263717]
[1729796306238,3.95919,2525.8,2525.6,2.41263717]
[1729796306450,0.04957446,2525.7,2525.6,2.41263717]
[1729796306828,3.95919,2525.8,2525.6,0.7873]
[1729796307029,0.04957446,2525.7,2525.4,1.7836884]
[1729796307233,3.95919,2525.8,2525.5,1.62533717]
[1729796307407,4.0090927,2525.7,2525.4,1.7836884]
[1729796307613,4.0090927,2525.7,2525.3,0.82715618]
[1729796307614,3.95961,2525.5,2525.3,1.0276884]
[1729796307812,0.04954647,2525.4,2525.3,2.65302557]
[1729796308013,0.04954647,2525.4,2525.3,1.62533717]
[1729796308212,0.04954647,2525.4,2525.3,2.65302557]
[1729796309348,0.04954647,2525.4,2525.3,2.6534487]
[1729796312544,3.95946,2525.6,2525.3,2.6534487]
[1729796312853,3.95946,2525.6,2525.4,1.62533717]
[1729796313162,0.04956867,2525.5,2525.4,1.62533717]
[1729796313328,0.04956867,2525.5,2525.4,2.65376171]
[1729796313525,0.04956867,2525.5,2525.4,1.62533717]
[1729796314543,0.04956867,2525.5,2525.3,2.65407964]
[1729796314735,0.04956867,2525.5,2525.4,1.62533717]
[1729796315556,0.04956867,2525.5,2525.4,2.6542574]
[1729796316159,0.04956867,2525.5,2525.4,2.65426448]
[1729796319060,0.04956867,2525.5,2525.4,1.62533717]
[1729796319229,0.04956867,2525.5,2525.4,3.48187864]
[1729796319728,0.04956867,2525.5,2525.4,1.02938529]
[1729796320182,0.04956867,2525.5,2525.4,2.65472246]
[1729796320340,0.04956867,2525.5,2525.4,3.48187864]
[1729796320729,0.04956867,2525.5,2525.4,1.85654147]
[1729796320929,0.04956867,2525.5,2525.4,1.02938529]
[1729796321130,0.04956867,2525.5,2525.4,2.65472246]
[1729796321464,0.04956867,2525.5,2525.4,3.48187864]
[1729796321662,0.04956867,2525.5,2525.4,2.65472246]
[1729796321861,0.04956867,2525.5,2525.4,3.48187864]
[1729796323163,0.04956867,2525.5,2525.4,1.85654147]
[1729796324166,0.04956867,2525.5,2525.4,1.02986784]
[1729796325265,0.04956867,2525.5,2525.4,3.48236119]
[1729796326757,0.04956867,2525.5,2525.4,1.85702402]
[1729796326955,0.04956867,2525.5,2525.4,3.48236119]
[1729796327785,0.04956867,2525.5,2525.4,1.85702402]
[1729796328290,0.04956867,2525.5,2525.4,3.48236119]
[1729796328591,3.95953,2525.6,2525.4,3.48236119]
[1729796328883,0.04948641,2525.5,2525.4,0.82715618]
[1729796329084,0.04948641,2525.5,2525.4,1.85711701]
[1729796329890,0.04948641,2525.5,2525.4,1.02996083]
[1729796330216,0.04948641,2525.5,2525.4,1.85711701]
[1729796332587,3.95931,2525.7,2525.4,3.48245418]
[1729796332892,0.04788884,2525.6,2525.5,1.02996083]
[1729796333247,4.00733884,2525.6,2525.5,1.02996083]
[1729796333886,4.00733884,2525.6,2525.5,1.03007047]
[1729796336593,0.04788884,2525.6,2525.5,1.03007047]
[1729796336770,4.00733884,2525.6,2525.5,1.03007047]
[1729796336965,3.95945,2525.6,2525.5,1.03007047]
[1729796337196,4.00709056,2525.6,2525.5,1.03007047]
[1729796337761,0.04764056,2525.6,2525.5,1.03007047]
[1729796339965,4.00709056,2525.6,2525.5,1.03007047]
[1729796340495,0.04764056,2525.6,2525.5,1.03007047]
[1729796340895,4.00709056,2525.6,2525.5,1.03007047]
[1729796341400,0.04764056,2525.6,2525.5,1.03007047]
[1729796342107,0.04764056,2525.6,2525.5,1.03027733]
[1729796346997,0.04764056,2525.6,2525.5,1.03062653]
[1729796347586,0.04764056,2525.6,2525.5,1.85778271]
[1729796348010,0.04764056,2525.6,2525.5,1.03062653]
[1729796348412,4.00709056,2525.6,2525.5,1.85778271]
[1729796348579,0.04764056,2525.6,2525.5,1.85778271]